[Event "Early-Titled-Tuesday-Blitz-March-05-2024"]
[Site "Chess.com"]
[Date "2024.03.05"]
[Round "1"]
[White "KetiTsatsalashvili"]
[Black "ViIIagra"]
[Result "0-1"]
[WhiteElo "2501"]
[BlackElo "2944"]
[TimeControl "180+1"]
[EndTime "8:08:09 PST"]
[Termination "ViIIagra won by checkmate"]

1. d4 {[%clk 0:03:00.9]} 1... d6 {[%clk 0:02:57.7]} 2. Nf3 {[%clk 0:03:00.8]}
2... Nf6 {[%clk 0:02:58.3]} 3. c4 {[%clk 0:03:00.2]} 3... g6 {[%clk 0:02:57.8]}
4. Nc3 {[%clk 0:03:00.1]} 4... Bg7 {[%clk 0:02:58.6]} 5. e4 {[%clk 0:03:00]}
5... O-O {[%clk 0:02:59.3]} 6. Be2 {[%clk 0:02:59.5]} 6... Nbd7 {[%clk
0:02:55.9]} 7. O-O {[%clk 0:02:50.2]} 7... e5 {[%clk 0:02:56.2]} 8. Be3 {[%clk
0:02:48.8]} 8... Ng4 {[%clk 0:02:47.9]} 9. Bg5 {[%clk 0:02:47.8]} 9... f6 {[%clk
0:02:48.3]} 10. Bc1 {[%clk 0:02:44.2]} 10... Nh6 {[%clk 0:02:47.4]} 11. d5
{[%clk 0:02:35.4]} 11... f5 {[%clk 0:02:20.1]} 12. Bg5 {[%clk 0:02:15.5]} 12...
Nf6 {[%clk 0:02:16.8]} 13. Rc1 {[%clk 0:01:55.6]} 13... f4 {[%clk 0:02:02.9]}
14. c5 {[%clk 0:01:49.9]} 14... Nf7 {[%clk 0:02:02.6]} 15. cxd6 {[%clk
0:01:44.1]} 15... cxd6 {[%clk 0:02:00.9]} 16. Nb5 {[%clk 0:01:41.5]} 16... Qb6
{[%clk 0:01:24.4]} 17. Bxf6 {[%clk 0:01:33.3]} 17... Bxf6 {[%clk 0:01:24.2]} 18.
Qb3 {[%clk 0:01:26.7]} 18... Bd7 {[%clk 0:01:20]} 19. Nc7 {[%clk 0:01:09.6]}
19... Qxb3 {[%clk 0:01:19.4]} 20. axb3 {[%clk 0:01:10.5]} 20... Rac8 {[%clk
0:01:19.7]} 21. Ne6 {[%clk 0:01:06.1]} 21... Rxc1 {[%clk 0:01:15.5]} 22. Rxc1
{[%clk 0:01:05.6]} 22... Rc8 {[%clk 0:01:16.4]} 23. Rxc8+ {[%clk 0:01:03.9]}
23... Bxc8 {[%clk 0:01:17.3]} 24. Bc4 {[%clk 0:00:58.4]} 24... Nd8 {[%clk
0:00:45.5]} 25. Nfg5 {[%clk 0:00:43.4]} 25... a6 {[%clk 0:00:34.2]} 26. b4
{[%clk 0:00:30.1]} 26... Bxg5 {[%clk 0:00:10.5]} 27. Nxg5 {[%clk 0:00:29.4]}
27... h6 {[%clk 0:00:10.3]} 28. Nf3 {[%clk 0:00:24.7]} 28... b5 {[%clk
0:00:10.5]} 29. Bb3 {[%clk 0:00:24.3]} 29... g5 {[%clk 0:00:10.9]} 30. Kf1
{[%clk 0:00:22.6]} 30... Kg7 {[%clk 0:00:11.3]} 31. Ke2 {[%clk 0:00:22.6]} 31...
Kf6 {[%clk 0:00:11.9]} 32. Ne1 {[%clk 0:00:22.4]} 32... g4 {[%clk 0:00:11.9]}
33. f3 {[%clk 0:00:22]} 33... h5 {[%clk 0:00:12.6]} 34. Nd3 {[%clk 0:00:21.9]}
34... Nf7 {[%clk 0:00:13.1]} 35. Nc1 {[%clk 0:00:20.6]} 35... Ng5 {[%clk
0:00:13.5]} 36. Nd3 {[%clk 0:00:20.1]} 36... h4 {[%clk 0:00:14]} 37. Ne1 {[%clk
0:00:19.1]} 37... h3 {[%clk 0:00:13]} 38. gxh3 {[%clk 0:00:18.1]} 38... gxf3+
{[%clk 0:00:13.1]} 39. Nxf3 {[%clk 0:00:18.4]} 39... Nxf3 {[%clk 0:00:06.6]} 40.
Kxf3 {[%clk 0:00:19.3]} 40... Bxh3 {[%clk 0:00:06.9]} 41. Bd1 {[%clk 0:00:18.4]}
41... Kg5 {[%clk 0:00:07.4]} 42. Be2 {[%clk 0:00:18.6]} 42... Kh4 {[%clk
0:00:04.7]} 43. Bd3 {[%clk 0:00:18.3]} 43... Bg4+ {[%clk 0:00:04.7]} 44. Kg2
{[%clk 0:00:18.3]} 44... Bh5 {[%clk 0:00:03.8]} 45. Bf1 {[%clk 0:00:17.8]} 45...
Bd1 {[%clk 0:00:04.3]} 46. Kf2 {[%clk 0:00:17.5]} 46... Kg4 {[%clk 0:00:04.1]}
47. Bg2 {[%clk 0:00:17.5]} 47... f3 {[%clk 0:00:04.3]} 48. Bf1 {[%clk
0:00:17.5]} 48... Kf4 {[%clk 0:00:04.9]} 49. Bd3 {[%clk 0:00:17.4]} 49... Bb3
{[%clk 0:00:04.1]} 50. h4 {[%clk 0:00:16.3]} 50... Bd1 {[%clk 0:00:04]} 51. Bf1
{[%clk 0:00:14.7]} 51... Kxe4 {[%clk 0:00:03.5]} 52. Bh3 {[%clk 0:00:14.6]}
52... Kxd5 {[%clk 0:00:03.7]} 53. Bg4 {[%clk 0:00:14.5]} 53... e4 {[%clk
0:00:04.1]} 54. Ke3 {[%clk 0:00:14.8]} 54... Ke5 {[%clk 0:00:03.8]} 55. Bd7
{[%clk 0:00:14.1]} 55... d5 {[%clk 0:00:04.3]} 56. Bc8 {[%clk 0:00:14]} 56...
d4+ {[%clk 0:00:04.9]} 57. Kf2 {[%clk 0:00:14.6]} 57... e3+ {[%clk 0:00:04.8]}
58. Ke1 {[%clk 0:00:14.8]} 58... f2+ {[%clk 0:00:05.7]} 59. Kf1 {[%clk
0:00:15.2]} 59... Kf4 {[%clk 0:00:06.2]} 60. Bxa6 {[%clk 0:00:15.2]} 60... Bf3
{[%clk 0:00:04.7]} 61. Bc8 {[%clk 0:00:14.8]} 61... Kg3 {[%clk 0:00:05.6]} 62.
Bd7 {[%clk 0:00:13.7]} 62... e2# {[%clk 0:00:05.9]} 0-1

[Event "Early-Titled-Tuesday-Blitz-March-05-2024"]
[Site "Chess.com"]
[Date "2024.03.05"]
[Round "1"]
[White "xiaopang123"]
[Black "Viacheslav92"]
[Result "0-1"]
[WhiteElo "2141"]
[BlackElo "2547"]
[TimeControl "180+1"]
[EndTime "8:08:09 PST"]
[Termination "Viacheslav92 won on time"]

1. Nf3 {[%clk 0:02:45.2]} 1... Nf6 {[%clk 0:02:58.5]} 2. e3 {[%clk 0:02:43.1]}
2... d5 {[%clk 0:02:54.7]} 3. c4 {[%clk 0:02:43]} 3... c6 {[%clk 0:02:54.8]} 4.
b3 {[%clk 0:02:42.1]} 4... Bg4 {[%clk 0:02:51.6]} 5. Bb2 {[%clk 0:02:41.7]} 5...
Nbd7 {[%clk 0:02:52]} 6. h3 {[%clk 0:02:38]} 6... Bh5 {[%clk 0:02:51]} 7. Nc3
{[%clk 0:02:25.3]} 7... e6 {[%clk 0:02:48.8]} 8. Be2 {[%clk 0:02:22.3]} 8... Bd6
{[%clk 0:02:48.4]} 9. d4 {[%clk 0:02:19.1]} 9... O-O {[%clk 0:02:47.3]} 10. O-O
{[%clk 0:02:19]} 10... Re8 {[%clk 0:02:47.8]} 11. Rc1 {[%clk 0:02:17.5]} 11...
a5 {[%clk 0:02:45.2]} 12. a3 {[%clk 0:02:12.4]} 12... Qe7 {[%clk 0:02:44.4]} 13.
Ra1 {[%clk 0:02:10]} 13... Bg6 {[%clk 0:02:43]} 14. c5 {[%clk 0:02:07.6]} 14...
Bc7 {[%clk 0:02:41.2]} 15. b4 {[%clk 0:02:08]} 15... e5 {[%clk 0:02:38.5]} 16.
dxe5 {[%clk 0:02:03.2]} 16... Nxe5 {[%clk 0:02:39.4]} 17. Na4 {[%clk 0:01:53.2]}
17... Ne4 {[%clk 0:02:24.9]} 18. Nxe5 {[%clk 0:01:46.6]} 18... Bxe5 {[%clk
0:02:25.8]} 19. Bxe5 {[%clk 0:01:46.7]} 19... Qxe5 {[%clk 0:02:26.1]} 20. Nb6
{[%clk 0:01:47]} 20... Ra7 {[%clk 0:02:20.1]} 21. Bf3 {[%clk 0:01:44.3]} 21...
h6 {[%clk 0:02:12.6]} 22. Bxe4 {[%clk 0:01:38.6]} 22... Bxe4 {[%clk 0:02:13.5]}
23. Qd4 {[%clk 0:01:31.5]} 23... Qg5 {[%clk 0:02:10.4]} 24. f3 {[%clk
0:01:30.5]} 24... Bf5 {[%clk 0:02:02.3]} 25. Kf2 {[%clk 0:01:28.7]} 25... Qg6
{[%clk 0:01:51.8]} 26. Rfe1 {[%clk 0:01:24]} 26... Bd3 {[%clk 0:01:49.4]} 27.
Nd7 {[%clk 0:01:16.9]} 27... Bb5 {[%clk 0:01:41.1]} 28. a4 {[%clk 0:01:10.7]}
28... Bxa4 {[%clk 0:01:26.9]} 29. Ne5 {[%clk 0:00:58.8]} 29... Qf5 {[%clk
0:01:24.2]} 30. e4 {[%clk 0:00:46.3]} 30... Qxe5 {[%clk 0:01:20.2]} 31. Qxe5
{[%clk 0:00:46.1]} 31... Rxe5 {[%clk 0:01:21.1]} 32. Rxa4 {[%clk 0:00:46.6]}
32... dxe4 {[%clk 0:01:18.4]} 33. Rxe4 {[%clk 0:00:45.7]} 33... Rxe4 {[%clk
0:01:15.3]} 34. fxe4 {[%clk 0:00:45.1]} 34... Kf8 {[%clk 0:01:16]} 35. Ke3
{[%clk 0:00:41.9]} 35... Ke7 {[%clk 0:01:16.5]} 36. Kd4 {[%clk 0:00:41.8]} 36...
Ke6 {[%clk 0:01:17]} 37. e5 {[%clk 0:00:39.7]} 37... Ra8 {[%clk 0:01:16.7]} 38.
Rxa5 {[%clk 0:00:34.5]} 38... Rd8+ {[%clk 0:01:16.8]} 39. Ke4 {[%clk 0:00:33.7]}
39... Rd2 {[%clk 0:00:51.7]} 40. Ra7 {[%clk 0:00:33.5]} 40... Rxg2 {[%clk
0:00:52]} 41. Rxb7 {[%clk 0:00:32.7]} 41... Re2+ {[%clk 0:00:52.6]} 42. Kf4
{[%clk 0:00:29.9]} 42... Rc2 {[%clk 0:00:34.7]} 43. Rc7 {[%clk 0:00:29]} 43...
Rc4+ {[%clk 0:00:34.7]} 44. Ke3 {[%clk 0:00:28]} 44... Rxb4 {[%clk 0:00:34.6]}
45. Rxc6+ {[%clk 0:00:28.3]} 45... Kxe5 {[%clk 0:00:34.9]} 46. Rc7 {[%clk
0:00:28.6]} 46... Rb3+ {[%clk 0:00:33.3]} 47. Kf2 {[%clk 0:00:27.4]} 47... Ke6
{[%clk 0:00:31]} 48. c6 {[%clk 0:00:26.6]} 48... Rxh3 {[%clk 0:00:30.6]} 49. Rc8
{[%clk 0:00:26.8]} 49... Rc3 {[%clk 0:00:31.1]} 50. c7 {[%clk 0:00:24.9]} 50...
Kf6 {[%clk 0:00:31.7]} 51. Kg2 {[%clk 0:00:23.1]} 51... g5 {[%clk 0:00:28.7]}
52. Kh2 {[%clk 0:00:22.9]} 52... h5 {[%clk 0:00:28.9]} 53. Kg2 {[%clk
0:00:23.3]} 53... h4 {[%clk 0:00:29.2]} 54. Kh2 {[%clk 0:00:23.6]} 54... Kf5
{[%clk 0:00:29.2]} 55. Kg2 {[%clk 0:00:23.8]} 55... Kf4 {[%clk 0:00:29.6]} 56.
Kf2 {[%clk 0:00:23.5]} 56... Rc2+ {[%clk 0:00:29.3]} 57. Kg1 {[%clk 0:00:23.4]}
57... h3 {[%clk 0:00:29.5]} 0-1

[Event "Early-Titled-Tuesday-Blitz-March-05-2024"]
[Site "Chess.com"]
[Date "2024.03.05"]
[Round "1"]
[White "vovachesss"]
[Black "corvachesky"]
[Result "1-0"]
[WhiteElo "2789"]
[BlackElo "2439"]
[TimeControl "180+1"]
[EndTime "8:08:11 PST"]
[Termination "vovachesss won on time"]

1. e4 {[%clk 0:02:56.7]} 1... c6 {[%clk 0:02:58.4]} 2. d4 {[%clk 0:02:55.4]}
2... d5 {[%clk 0:02:58.8]} 3. Nc3 {[%clk 0:02:56.1]} 3... dxe4 {[%clk
0:02:58.7]} 4. Nge2 {[%clk 0:02:57]} 4... Nf6 {[%clk 0:02:56.7]} 5. Ng3 {[%clk
0:02:57.1]} 5... g6 {[%clk 0:02:53.1]} 6. Bc4 {[%clk 0:02:55]} 6... Bg7 {[%clk
0:02:52.6]} 7. O-O {[%clk 0:02:54.6]} 7... O-O {[%clk 0:02:52.5]} 8. a4 {[%clk
0:02:53.1]} 8... a5 {[%clk 0:02:50.8]} 9. Re1 {[%clk 0:02:52]} 9... Nbd7 {[%clk
0:02:44.7]} 10. Ba2 {[%clk 0:02:44.6]} 10... Nb6 {[%clk 0:02:42.7]} 11. Bf4
{[%clk 0:02:43]} 11... Nbd5 {[%clk 0:02:37.3]} 12. Be5 {[%clk 0:02:43]} 12...
Nxc3 {[%clk 0:02:32.1]} 13. bxc3 {[%clk 0:02:43.9]} 13... Nd5 {[%clk 0:02:23]}
14. Bxg7 {[%clk 0:02:38.7]} 14... Kxg7 {[%clk 0:02:18.6]} 15. Nxe4 {[%clk
0:02:38.2]} 15... f5 {[%clk 0:02:07.9]} 16. Bxd5 {[%clk 0:02:19.3]} 16... Qxd5
{[%clk 0:02:06]} 17. Nc5 {[%clk 0:01:56.2]} 17... Rf7 {[%clk 0:02:03.8]} 18. Qd3
{[%clk 0:01:50.5]} 18... b6 {[%clk 0:02:01.4]} 19. Re5 {[%clk 0:01:27.3]} 19...
Qd6 {[%clk 0:01:54.6]} 20. Nb3 {[%clk 0:01:27]} 20... Ba6 {[%clk 0:01:53.7]} 21.
Qe3 {[%clk 0:01:04.4]} 21... Rd8 {[%clk 0:01:47.3]} 22. Re1 {[%clk 0:01:03.1]}
22... Rd7 {[%clk 0:01:47.2]} 23. h4 {[%clk 0:01:02.4]} 23... h6 {[%clk
0:01:32.2]} 24. Nd2 {[%clk 0:00:47.5]} 24... Qa3 {[%clk 0:01:18.9]} 25. Nf3
{[%clk 0:00:38.3]} 25... Qxa4 {[%clk 0:01:14.9]} 26. h5 {[%clk 0:00:38.9]} 26...
Qxc2 {[%clk 0:00:47.1]} 27. hxg6 {[%clk 0:00:34.3]} 27... f4 {[%clk 0:00:46.3]}
28. Qe4 {[%clk 0:00:07.1]} 28... Qxe4 {[%clk 0:00:44.7]} 29. R1xe4 {[%clk
0:00:08]} 29... Kxg6 {[%clk 0:00:41.9]} 30. Re6+ {[%clk 0:00:06.5]} 30... Kh7
{[%clk 0:00:37.4]} 31. Ne5 {[%clk 0:00:03.9]} 31... a4 {[%clk 0:00:17.7]} 32.
Nxd7 {[%clk 0:00:03.4]} 32... a3 {[%clk 0:00:16.9]} 33. Re1 {[%clk 0:00:03.8]}
33... Bc4 {[%clk 0:00:14.5]} 34. Rxc6 {[%clk 0:00:03.9]} 34... Bb5 {[%clk
0:00:14.2]} 35. Rc7 {[%clk 0:00:02.4]} 35... e6 {[%clk 0:00:12.4]} 36. Ra7
{[%clk 0:00:02.4]} 36... Bxd7 {[%clk 0:00:08.4]} 37. Rxa3 {[%clk 0:00:03.3]}
37... b5 {[%clk 0:00:07.6]} 38. Ra6 {[%clk 0:00:03.3]} 38... Kg6 {[%clk
0:00:07.1]} 39. Ra7 {[%clk 0:00:04]} 39... Kf6 {[%clk 0:00:06.9]} 40. Re5 {[%clk
0:00:04.6]} 40... Bc6 {[%clk 0:00:04.8]} 41. Rxf7+ {[%clk 0:00:05.5]} 41... Kxf7
{[%clk 0:00:05.1]} 42. Rc5 {[%clk 0:00:06.3]} 42... Bd7 {[%clk 0:00:04.4]} 43.
f3 {[%clk 0:00:06.1]} 43... Ke7 {[%clk 0:00:04.6]} 44. Rh5 {[%clk 0:00:05.9]}
44... Bc6 {[%clk 0:00:01.7]} 45. Rxh6 {[%clk 0:00:06.4]} 45... Kd6 {[%clk
0:00:02.2]} 46. Rh4 {[%clk 0:00:06.8]} 46... e5 {[%clk 0:00:01.8]} 47. dxe5+
{[%clk 0:00:07.5]} 47... Kxe5 {[%clk 0:00:02.7]} 48. Kf2 {[%clk 0:00:08.1]}
48... Bd5 {[%clk 0:00:02.7]} 49. g3 {[%clk 0:00:07.9]} 49... fxg3+ {[%clk
0:00:02.2]} 50. Kxg3 {[%clk 0:00:08.8]} 50... Kd6 {[%clk 0:00:02.8]} 51. Rb4
{[%clk 0:00:07.1]} 51... Kc5 {[%clk 0:00:02.9]} 52. Kf4 {[%clk 0:00:08]} 52...
Bc4 {[%clk 0:00:03.2]} 53. Ke3 {[%clk 0:00:08.5]} 53... Bd5 {[%clk 0:00:03.3]}
54. Kf4 {[%clk 0:00:08.7]} 54... Bc4 {[%clk 0:00:02.5]} 55. Ke5 {[%clk
0:00:09.3]} 55... Bd3 {[%clk 0:00:01.6]} 56. f4 {[%clk 0:00:10.2]} 1-0

[Event "Early-Titled-Tuesday-Blitz-March-05-2024"]
[Site "Chess.com"]
[Date "2024.03.05"]
[Round "1"]
[White "Chessbard1972"]
[Black "JaloliddinIlkhomi"]
[Result "1-0"]
[WhiteElo "2448"]
[BlackElo "2740"]
[TimeControl "180+1"]
[EndTime "8:08:12 PST"]
[Termination "Chessbard1972 won by resignation"]

1. d4 {[%clk 0:03:00.9]} 1... Nf6 {[%clk 0:02:59.9]} 2. c4 {[%clk 0:03:00.4]}
2... e6 {[%clk 0:03:00.4]} 3. Nf3 {[%clk 0:02:59.7]} 3... b6 {[%clk 0:02:56.7]}
4. a3 {[%clk 0:02:59]} 4... Bb7 {[%clk 0:02:55.8]} 5. Nc3 {[%clk 0:02:58.1]}
5... d5 {[%clk 0:02:56]} 6. cxd5 {[%clk 0:02:57.7]} 6... Nxd5 {[%clk 0:02:56.9]}
7. Qa4+ {[%clk 0:02:56.8]} 7... Qd7 {[%clk 0:02:50]} 8. Qc2 {[%clk 0:02:56.2]}
8... Nxc3 {[%clk 0:02:48.2]} 9. bxc3 {[%clk 0:02:55.8]} 9... Bd6 {[%clk
0:02:43.1]} 10. e4 {[%clk 0:02:54.7]} 10... O-O {[%clk 0:02:43.4]} 11. Bd3
{[%clk 0:02:52.3]} 11... h6 {[%clk 0:02:43]} 12. O-O {[%clk 0:02:50.3]} 12...
Qd8 {[%clk 0:02:39.6]} 13. Bb2 {[%clk 0:02:44.6]} 13... c5 {[%clk 0:02:39.4]}
14. Rfd1 {[%clk 0:02:31.6]} 14... Qe7 {[%clk 0:02:33.4]} 15. d5 {[%clk
0:02:28.8]} 15... e5 {[%clk 0:02:15.8]} 16. c4 {[%clk 0:02:28.2]} 16... Nd7
{[%clk 0:02:14.1]} 17. a4 {[%clk 0:02:25.2]} 17... Nf6 {[%clk 0:02:03.8]} 18.
Nh4 {[%clk 0:02:18.6]} 18... Bc8 {[%clk 0:02:03.4]} 19. g3 {[%clk 0:02:14.4]}
19... g5 {[%clk 0:02:01.5]} 20. Ng2 {[%clk 0:02:11.5]} 20... Bg4 {[%clk
0:02:00.5]} 21. Be2 {[%clk 0:02:10.1]} 21... Bxe2 {[%clk 0:01:51.5]} 22. Qxe2
{[%clk 0:02:10]} 22... Qd7 {[%clk 0:01:51.9]} 23. f3 {[%clk 0:02:08.4]} 23... a6
{[%clk 0:01:48.9]} 24. Ne3 {[%clk 0:02:04.5]} 24... Ne8 {[%clk 0:01:42.9]} 25.
Nf5 {[%clk 0:02:03.3]} 25... Kh7 {[%clk 0:01:43.4]} 26. f4 {[%clk 0:01:59.9]}
26... f6 {[%clk 0:00:56.6]} 27. Qh5 {[%clk 0:01:56.6]} 27... Ng7 {[%clk
0:00:54.1]} 28. Qxh6+ {[%clk 0:01:55.7]} 28... Kg8 {[%clk 0:00:54.7]} 29. Qg6
{[%clk 0:01:42.3]} 29... Kh8 {[%clk 0:00:54.2]} 30. fxe5 {[%clk 0:01:32.8]}
30... Bxe5 {[%clk 0:00:38.6]} 31. Bxe5 {[%clk 0:01:28.9]} 31... fxe5 {[%clk
0:00:39.1]} 32. g4 {[%clk 0:01:18]} 32... Nxf5 {[%clk 0:00:35.2]} 33. exf5
{[%clk 0:01:15.1]} 33... Qg7 {[%clk 0:00:32.7]} 34. Qh5+ {[%clk 0:01:12.4]}
34... Kg8 {[%clk 0:00:31.5]} 35. Rab1 {[%clk 0:01:11.5]} 35... Rf6 {[%clk
0:00:30.7]} 36. Qh3 {[%clk 0:01:09.8]} 36... Rd8 {[%clk 0:00:20.1]} 37. Re1
{[%clk 0:01:09.6]} 37... Rfd6 {[%clk 0:00:15.6]} 38. Qg3 {[%clk 0:01:08.6]}
38... Re8 {[%clk 0:00:15.8]} 39. Re4 {[%clk 0:01:06.2]} 39... Qf6 {[%clk
0:00:08.1]} 40. Rbe1 {[%clk 0:01:05.4]} 40... Rd7 {[%clk 0:00:08.6]} 41. Rxe5
{[%clk 0:01:05]} 41... Rde7 {[%clk 0:00:09.1]} 42. Re6 {[%clk 0:01:02.8]} 42...
Rxe6 {[%clk 0:00:09]} 43. fxe6 {[%clk 0:00:59.5]} 43... Qd4+ {[%clk 0:00:09]}
44. Kh1 {[%clk 0:00:57.1]} 44... Qxc4 {[%clk 0:00:08]} 45. Qe5 {[%clk 0:00:55]}
45... Qxg4 {[%clk 0:00:06.5]} 46. Qe4 {[%clk 0:00:49.6]} 46... Qh4 {[%clk
0:00:01.6]} 47. Qg6+ {[%clk 0:00:45.6]} 47... Kh8 {[%clk 0:00:01.3]} 48. Qxe8+
{[%clk 0:00:44.6]} 48... Kh7 {[%clk 0:00:02.2]} 49. Qf7+ {[%clk 0:00:44]} 49...
Kh6 {[%clk 0:00:02.9]} 50. Qf6+ {[%clk 0:00:43.6]} 50... Kh7 {[%clk 0:00:03.1]}
51. Qf1 {[%clk 0:00:33.7]} 51... Qd4 {[%clk 0:00:02.4]} 52. Qg2 {[%clk
0:00:31.1]} 52... Qc3 {[%clk 0:00:02.1]} 53. Rf1 {[%clk 0:00:30.6]} 53... Kg6
{[%clk 0:00:01.9]} 54. e7 {[%clk 0:00:29.8]} 54... Qe5 {[%clk 0:00:02.6]} 55. d6
{[%clk 0:00:29.3]} 55... c4 {[%clk 0:00:03.2]} 56. Qc2+ {[%clk 0:00:24.8]} 56...
Kh6 {[%clk 0:00:03.8]} 57. Qf5 {[%clk 0:00:21.8]} 57... Qe2 {[%clk 0:00:02.8]}
58. Qf6+ {[%clk 0:00:20.6]} 58... Kh5 {[%clk 0:00:03.4]} 59. Qf3+ {[%clk
0:00:20.3]} 59... Qxf3+ {[%clk 0:00:02]} 60. Rxf3 {[%clk 0:00:20.5]} 60... c3
{[%clk 0:00:02.9]} 61. Rxc3 {[%clk 0:00:20.6]} 61... Kg4 {[%clk 0:00:03.8]} 62.
e8=Q {[%clk 0:00:20.1]} 1-0

[Event "Early-Titled-Tuesday-Blitz-March-05-2024"]
[Site "Chess.com"]
[Date "2024.03.05"]
[Round "1"]
[White "Jospem"]
[Black "ninguno46"]
[Result "1/2-1/2"]
[WhiteElo "3056"]
[BlackElo "2527"]
[TimeControl "180+1"]
[EndTime "8:08:14 PST"]
[Termination "Game drawn by agreement"]

1. e4 {[%clk 0:03:00.9]} 1... c5 {[%clk 0:02:58.6]} 2. Nf3 {[%clk 0:03:01.6]}
2... Nc6 {[%clk 0:02:58.6]} 3. c3 {[%clk 0:03:01.9]} 3... d5 {[%clk 0:02:56.7]}
4. exd5 {[%clk 0:03:02]} 4... Qxd5 {[%clk 0:02:56.9]} 5. d4 {[%clk 0:03:02.8]}
5... Nf6 {[%clk 0:02:56.2]} 6. Be2 {[%clk 0:03:01.5]} 6... e6 {[%clk 0:02:56.4]}
7. Be3 {[%clk 0:03:01.3]} 7... Ng4 {[%clk 0:02:52]} 8. O-O {[%clk 0:02:57.2]}
8... Nxe3 {[%clk 0:02:51.7]} 9. fxe3 {[%clk 0:02:58.1]} 9... Be7 {[%clk
0:02:50.4]} 10. Nbd2 {[%clk 0:02:58]} 10... O-O {[%clk 0:02:49.2]} 11. Bd3
{[%clk 0:02:56.6]} 11... Qh5 {[%clk 0:02:38.2]} 12. Ne4 {[%clk 0:02:51.1]} 12...
cxd4 {[%clk 0:02:36.4]} 13. exd4 {[%clk 0:02:51.2]} 13... Bd7 {[%clk 0:02:30.4]}
14. Ng3 {[%clk 0:02:51.4]} 14... Qh6 {[%clk 0:02:29.4]} 15. Qe2 {[%clk
0:02:44.2]} 15... Rae8 {[%clk 0:02:17.9]} 16. Kh1 {[%clk 0:02:44]} 16... Bd6
{[%clk 0:02:17.2]} 17. Ne4 {[%clk 0:02:42.3]} 17... Bf4 {[%clk 0:02:10.1]} 18.
Qf2 {[%clk 0:02:31.8]} 18... Bc8 {[%clk 0:02:01.5]} 19. Rae1 {[%clk 0:02:26]}
19... f5 {[%clk 0:01:40]} 20. Ng3 {[%clk 0:02:08.2]} 20... Bb8 {[%clk
0:01:26.8]} 21. Qd2 {[%clk 0:01:34.3]} 21... Qxd2 {[%clk 0:01:18.8]} 22. Nxd2
{[%clk 0:01:35.2]} 22... g6 {[%clk 0:01:16.5]} 23. Bb5 {[%clk 0:01:35.3]} 23...
Bd7 {[%clk 0:01:10.3]} 24. Nf3 {[%clk 0:01:35.6]} 24... a6 {[%clk 0:01:06]} 25.
Ba4 {[%clk 0:01:35.8]} 25... b5 {[%clk 0:01:04.1]} 26. Bb3 {[%clk 0:01:36.2]}
26... Kg7 {[%clk 0:01:04.6]} 27. Rd1 {[%clk 0:01:33.4]} 27... Re7 {[%clk
0:01:02.9]} 28. Ne2 {[%clk 0:01:28.8]} 28... e5 {[%clk 0:00:55.9]} 29. d5 {[%clk
0:01:22.1]} 29... Na5 {[%clk 0:00:50.7]} 30. Nc1 {[%clk 0:01:20.8]} 30... Nb7
{[%clk 0:00:43.9]} 31. Rfe1 {[%clk 0:01:20.1]} 31... e4 {[%clk 0:00:42.9]} 32.
Nd4 {[%clk 0:01:19.8]} 32... Nd6 {[%clk 0:00:42.4]} 33. Ne6+ {[%clk 0:01:15.9]}
33... Bxe6 {[%clk 0:00:40]} 34. dxe6 {[%clk 0:01:16.8]} 34... Kf6 {[%clk
0:00:39.1]} 35. Ne2 {[%clk 0:01:12.3]} 35... Nc4 {[%clk 0:00:34.8]} 36. Nd4
{[%clk 0:01:06.1]} 36... Rc8 {[%clk 0:00:31.6]} 37. Bxc4 {[%clk 0:01:00.5]}
37... Rxc4 {[%clk 0:00:29.2]} 38. Nc2 {[%clk 0:00:50.1]} 38... Rxe6 {[%clk
0:00:25.3]} 39. Ne3 {[%clk 0:00:50.7]} 39... Rc8 {[%clk 0:00:20.2]} 40. Rd7
{[%clk 0:00:51]} 40... h5 {[%clk 0:00:18]} 41. g3 {[%clk 0:00:51.1]} 41... h4
{[%clk 0:00:16.4]} 42. Kg2 {[%clk 0:00:51.1]} 42... hxg3 {[%clk 0:00:15.8]} 43.
hxg3 {[%clk 0:00:52]} 43... Rh8 {[%clk 0:00:15.8]} 44. Red1 {[%clk 0:00:49.5]}
44... Kg5 {[%clk 0:00:15.5]} 45. Rb7 {[%clk 0:00:39.6]} 45... Ree8 {[%clk
0:00:12.8]} 46. Rdd7 {[%clk 0:00:31]} 46... Rd8 {[%clk 0:00:08.2]} 47. Nd5
{[%clk 0:00:31.1]} 47... Rxd7 {[%clk 0:00:06.2]} 48. Rxd7 {[%clk 0:00:32]} 48...
f4 {[%clk 0:00:04.9]} 49. gxf4+ {[%clk 0:00:31.5]} 49... Bxf4 {[%clk 0:00:05]}
50. Kg1 {[%clk 0:00:29.2]} 50... Kg4 {[%clk 0:00:03.4]} 51. Kg2 {[%clk
0:00:18.3]} 51... Rh2+ {[%clk 0:00:02.2]} 52. Kg1 {[%clk 0:00:19]} 52... Rxb2
{[%clk 0:00:02.9]} 53. Re7 {[%clk 0:00:19.6]} 53... Kf3 {[%clk 0:00:01.8]} 54.
Nxf4 {[%clk 0:00:20.5]} 54... Kxf4 {[%clk 0:00:01.5]} 55. Kf1 {[%clk 0:00:21.4]}
55... Ke3 {[%clk 0:00:01.8]} 56. Kg1 {[%clk 0:00:22.3]} 56... Rxa2 {[%clk
0:00:02.2]} 57. Rg7 {[%clk 0:00:23.2]} 57... Rc2 {[%clk 0:00:02.5]} 58. Rxg6
{[%clk 0:00:24.1]} 58... Rxc3 {[%clk 0:00:03.2]} 59. Rxa6 {[%clk 0:00:24.7]}
59... Kd3 {[%clk 0:00:03.7]} 60. Kg2 {[%clk 0:00:25.6]} 60... e3 {[%clk
0:00:04.1]} 61. Kf3 {[%clk 0:00:26.4]} 61... Rc2 {[%clk 0:00:04.6]} 62. Rd6+
{[%clk 0:00:26.8]} 62... Kc3 {[%clk 0:00:04.8]} 63. Kxe3 {[%clk 0:00:27.7]}
63... b4 {[%clk 0:00:05.3]} 64. Rc6+ {[%clk 0:00:28.4]} 64... Kb2 {[%clk
0:00:05.1]} 65. Rb6 {[%clk 0:00:29.3]} 65... b3 {[%clk 0:00:05.3]} 66. Kd3
{[%clk 0:00:30]} 66... Rc8 {[%clk 0:00:04.5]} 67. Kd2 {[%clk 0:00:30.5]} 67...
Rd8+ {[%clk 0:00:04.6]} 68. Ke2 {[%clk 0:00:30.5]} 68... Re8+ {[%clk 0:00:05.5]}
69. Kd2 {[%clk 0:00:30.4]} 69... Rd8+ {[%clk 0:00:05.6]} 70. Ke2 {[%clk
0:00:30.8]} 1/2-1/2